[Event "Dalheimers Hus Rapid Open"]
[Site "Dalheimers Hus, Slottsskogsgatan 12, Gothenburg, Sweden"]
[Date "2024.04.14"]
[Round "4.10"]
[White "Svensson, Leif"]
[Black "Svenn, Gosta"]
[Result "0-1"]
[TimeControl "15 minutes + 5 seconds per move from move one."]
[BlackTitle "FM"]
[WhiteFideId "1702459"]
[BlackFideId "1700553"]
[WhiteElo "1952"]
[BlackElo "2280"]

1. d4 {[%clk 00:15:09]} e6 {[%clk 00:14:57]} {[%emt 00:00:14]} 2. e4 {[%clk
00:15:10]} {[%emt 00:00:03]} d5 {[%clk 00:15:00]} {[%emt 00:00:02]} 3. Nc3
{[%clk 00:15:13]} {[%emt 00:00:02]} Bb4 {[%clk 00:15:03]} {[%emt 00:00:02]} 4.
Nge2 {[%clk 00:15:11]} {[%emt 00:00:06]} dxe4 {[%clk 00:14:55]} {[%emt
00:00:15]} 5. a3 {[%clk 00:15:14]} Be7 {[%clk 00:14:52]} {[%emt 00:00:07]} 6.
Nxe4 {[%clk 00:15:17]} {[%emt 00:00:03]} Nf6 {[%clk 00:14:47]} {[%emt
00:00:10]} 7. N2c3 {[%clk 00:15:05]} {[%emt 00:00:17]} Nc6 {[%clk 00:13:31]}
{[%emt 00:01:21]} 8. Be3 {[%clk 00:15:06]} {[%emt 00:00:04]} O-O {[%clk
00:13:25]} {[%emt 00:00:11]} 9. Be2 {[%clk 00:13:30]} {[%emt 00:01:41]} b6
{[%clk 00:13:05]} {[%emt 00:00:26]} 10. Bf3 {[%clk 00:13:21]} {[%emt 00:00:14]}
Bb7 {[%clk 00:13:06]} {[%emt 00:00:04]} 11. Qd2 {[%clk 00:13:01]} {[%emt
00:00:25]} Na5 {[%clk 00:11:44]} {[%emt 00:01:27]} 12. Nxf6+ {[%clk 00:12:47]}
{[%emt 00:00:18]} Bxf6 {[%clk 00:11:48]} {[%emt 00:00:02]} 13. Bxb7 {[%clk
00:12:51]} {[%emt 00:00:02]} Nxb7 {[%clk 00:11:51]} 14. O-O {[%clk 00:12:49]}
{[%emt 00:00:07]} c5 {[%clk 00:11:05]} {[%emt 00:00:51]} 15. Rad1 {[%clk
00:12:28]} {[%emt 00:00:26]} cxd4 {[%clk 00:09:47]} {[%emt 00:01:23]} 16. Bxd4
{[%clk 00:12:31]} {[%emt 00:00:02]} Qe7 {[%clk 00:09:01]} {[%emt 00:00:50]} 17.
Bxf6 {[%clk 00:11:56]} {[%emt 00:00:40]} Qxf6 {[%clk 00:09:05]} {[%emt
00:00:02]} 18. Qd4 {[%emt 00:01:47]} Qf5 {[%clk 00:07:02]} {[%emt 00:02:05]} 19.
Qe4 {[%clk 00:10:11]} {[%emt 00:00:11]} Qxe4 {[%clk 00:07:04]} {[%emt
00:00:03]} 20. Nxe4 {[%clk 00:10:14]} {[%emt 00:00:01]} Rfd8 {[%clk 00:07:06]}
{[%emt 00:00:03]} 21. f3 {[%clk 00:09:46]} {[%emt 00:00:34]} f6 {[%clk
00:06:46]} {[%emt 00:00:25]} 22. Kf2 {[%clk 00:09:46]} {[%emt 00:00:05]} Kf7
{[%clk 00:06:49]} {[%emt 00:00:02]} 23. Ke2 {[%clk 00:09:46]} {[%emt 00:00:05]}
e5 {[%clk 00:06:37]} {[%emt 00:00:17]} 24. Rd3 {[%clk 00:08:14]} {[%emt
00:01:37]} Rxd3 {[%clk 00:06:05]} {[%emt 00:00:37]} 25. Kxd3 {[%clk 00:08:13]}
{[%emt 00:00:07]} Rd8+ {[%clk 00:06:04]} {[%emt 00:00:05]} 26. Ke2 {[%clk
00:08:17]} Ke6 {[%clk 00:05:30]} {[%emt 00:00:39]} 27. g4 {[%clk 00:06:35]}
{[%emt 00:01:47]} Na5 {[%clk 00:04:39]} {[%emt 00:00:56]} 28. b3 {[%clk
00:06:17]} {[%emt 00:00:23]} Nc6 {[%clk 00:04:41]} {[%emt 00:00:03]} 29. c3
{[%clk 00:06:18]} {[%emt 00:00:05]} g6 {[%clk 00:04:13]} {[%emt 00:00:32]} 30.
h4 {[%clk 00:05:03]} {[%emt 00:01:20]} h6 {[%clk 00:04:05]} {[%emt 00:00:12]}
31. Rg1 {[%clk 00:04:47]} {[%emt 00:00:22]} Na5 {[%clk 00:04:01]} {[%emt
00:00:09]} 32. Nd2 {[%clk 00:04:00]} {[%emt 00:00:52]} Rc8 {[%clk 00:02:28]}
{[%emt 00:01:38]} 33. c4 {[%clk 00:03:56]} {[%emt 00:00:08]} Nc6 {[%clk
00:02:19]} {[%emt 00:00:14]} 34. Ke3 {[%clk 00:03:25]} {[%emt 00:00:36]} Nd4
{[%clk 00:01:53]} {[%emt 00:00:32]} 35. a4 {[%clk 00:02:59]} {[%emt 00:00:32]}
a5 {[%clk 00:01:51]} {[%emt 00:00:07]} 36. Rb1 {[%clk 00:02:45]} {[%emt
00:00:19]} f5 {[%clk 00:01:42]} {[%emt 00:00:13]} 37. h5 {[%clk 00:01:40]}
{[%emt 00:01:09]} gxh5 {[%clk 00:01:35]} {[%emt 00:00:13]} 38. Rh1 {[%clk
00:01:05]} {[%emt 00:00:40]} fxg4 {[%clk 00:00:31]} {[%emt 00:01:10]} 39. fxg4
{[%clk 00:01:04]} {[%emt 00:00:06]} hxg4 {[%clk 00:00:22]} {[%emt 00:00:13]} 40.
Rxh6+ {[%clk 00:01:07]} {[%emt 00:00:01]} Kf5 {[%clk 00:00:25]} {[%emt
00:00:03]} 41. Rxb6 {[%clk 00:00:55]} {[%emt 00:00:17]} Rf8 {[%clk 00:00:17]}
{[%emt 00:00:13]} 42. Nf1 {[%clk 00:00:23]} {[%emt 00:00:38]} Kg5 {[%clk
00:00:18]} {[%emt 00:00:03]} 43. Nd2 {[%clk 00:00:13]} {[%emt 00:00:15]} Nf5+
{[%clk 00:00:11]} {[%emt 00:00:12]} 44. Ke4 {[%clk 00:00:00]} {[%emt 00:00:15]}
0-1

[Event "Dalheimers Hus Rapid Open"]
[Site "Dalheimers Hus, Slottsskogsgatan 12, Gothenburg, Sweden"]
[Date "2024.04.14"]
[Round "4.11"]
[White "Wesslen, Ulf"]
[Black "Arnelind, Mikael"]
[Result "1/2-1/2"]
[TimeControl "15 minutes + 5 seconds per move from move one."]
[WhiteFideId "1705199"]
[BlackFideId "1704290"]
[WhiteElo "1949"]
[BlackElo "2153"]

1. d4 {[%clk 00:15:02]} {[%emt 00:00:07]} Nf6 {[%clk 00:15:06]} {[%emt
00:00:05]} 2. c4 {[%clk 00:15:02]} {[%emt 00:00:05]} e6 {[%clk 00:15:08]}
{[%emt 00:00:02]} 3. Nc3 {[%clk 00:14:36]} {[%emt 00:00:31]} Bb4 {[%clk
00:15:07]} {[%emt 00:00:05]} 4. Qb3 {[%clk 00:14:33]} {[%emt 00:00:09]} c5
{[%clk 00:14:16]} {[%emt 00:00:57]} 5. Nf3 {[%clk 00:14:01]} {[%emt 00:00:36]}
O-O {[%clk 00:13:32]} {[%emt 00:00:50]} 6. Bd2 {[%clk 00:12:15]} {[%emt
00:01:51]} Nc6 {[%clk 00:11:15]} {[%emt 00:02:21]} 7. e3 {[%clk 00:10:08]}
{[%emt 00:02:12]} cxd4 {[%clk 00:10:32]} {[%emt 00:00:48]} 8. exd4 {[%clk
00:09:45]} {[%emt 00:00:28]} d5 {[%clk 00:10:16]} {[%emt 00:00:21]} 9. cxd5
{[%clk 00:08:22]} {[%emt 00:01:28]} exd5 {[%clk 00:09:54]} {[%emt 00:00:28]} 10.
Be2 {[%clk 00:07:10]} {[%emt 00:01:17]} Re8 {[%clk 00:09:39]} {[%emt 00:00:19]}
11. a3 {[%clk 00:05:43]} {[%emt 00:01:32]} Ba5 {[%clk 00:08:49]} {[%emt
00:00:55]} 12. h3 {[%clk 00:04:21]} {[%emt 00:01:27]} Bb6 {[%clk 00:04:34]}
{[%emt 00:04:20]} 13. Be3 {[%clk 00:04:15]} {[%emt 00:00:11]} Bf5 {[%clk
00:04:21]} {[%emt 00:00:18]} 14. O-O {[%clk 00:03:44]} {[%emt 00:00:36]} Rc8
{[%clk 00:03:29]} {[%emt 00:00:58]} 15. Rad1 {[%clk 00:03:32]} {[%emt
00:00:16]} Na5 {[%clk 00:02:54]} {[%emt 00:00:40]} 16. Qa2 {[%clk 00:03:36]}
{[%emt 00:00:02]} h6 {[%clk 00:02:14]} {[%emt 00:00:45]} 17. Ne5 {[%clk
00:03:25]} {[%emt 00:00:15]} Bc2 {[%clk 00:02:05]} {[%emt 00:00:15]} 18. Rd2
{[%clk 00:03:04]} {[%emt 00:00:25]} Bb3 {[%clk 00:02:08]} {[%emt 00:00:02]} 19.
Qb1 {[%clk 00:03:08]} {[%emt 00:00:02]} Nc4 {[%clk 00:02:11]} {[%emt 00:00:01]}
20. Nxc4 {[%clk 00:02:39]} {[%emt 00:00:34]} Bxc4 {[%clk 00:02:15]} {[%emt
00:00:02]} 21. Re1 {[%clk 00:02:34]} {[%emt 00:00:10]} Bxe2 {[%clk 00:02:13]}
{[%emt 00:00:07]} 22. Rdxe2 {[%clk 00:02:25]} {[%emt 00:00:14]} Qd7 {[%clk
00:01:43]} {[%emt 00:00:35]} 23. Qd3 {[%emt 00:00:32]} Ne4 {[%clk 00:01:25]} 24.
Rc1 {[%clk 00:01:48]} {[%emt 00:00:37]} Nxc3 {[%clk 00:01:15]} {[%emt
00:00:15]} 25. Rxc3 {[%clk 00:01:42]} {[%emt 00:00:12]} Rxc3 {[%clk 00:01:12]}
{[%emt 00:00:08]} 26. Qxc3 {[%clk 00:01:29]} {[%emt 00:00:18]} Qf5 {[%clk
00:01:04]} {[%emt 00:00:13]} 27. Rc2 {[%clk 00:01:17]} {[%emt 00:00:16]} Rd8
{[%clk 00:00:42]} {[%emt 00:00:28]} 28. b4 {[%clk 00:01:19]} {[%emt 00:00:02]}
Qd7 {[%clk 00:00:42]} {[%emt 00:00:05]} 29. Rc1 {[%clk 00:01:11]} {[%emt
00:00:14]} Qa4 {[%clk 00:00:38]} {[%emt 00:00:09]} 30. Qd3 {[%clk 00:01:05]}
{[%emt 00:00:10]} Re8 {[%clk 00:00:37]} {[%emt 00:00:07]} 31. Bf4 {[%clk
00:00:55]} {[%emt 00:00:15]} Qd7 {[%clk 00:00:27]} {[%emt 00:00:14]} 32. Qd1
{[%clk 00:00:43]} {[%emt 00:00:17]} Qf5 {[%clk 00:00:26]} {[%emt 00:00:07]} 33.
Bd6 {[%clk 00:00:39]} {[%emt 00:00:09]} Re6 {[%clk 00:00:19]} {[%emt 00:00:12]}
34. Be5 {[%clk 00:00:26]} {[%emt 00:00:17]} Kh7 {[%clk 00:00:20]} {[%emt
00:00:05]} 35. Rc3 {[%clk 00:00:25]} {[%emt 00:00:06]} Rg6 {[%clk 00:00:18]}
{[%emt 00:00:07]} 36. Kh2 {[%clk 00:00:24]} {[%emt 00:00:05]} f6 {[%clk
00:00:20]} {[%emt 00:00:04]} 37. Rf3 {[%clk 00:00:20]} {[%emt 00:00:10]} Qe4
{[%clk 00:00:11]} {[%emt 00:00:13]} 38. Bg3 {[%clk 00:00:22]} {[%emt 00:00:03]}
Qe6 {[%clk 00:00:06]} {[%emt 00:00:10]} 39. Re3 {[%clk 00:00:21]} {[%emt
00:00:05]} Qd7 {[%clk 00:00:10]} 40. Qd3 {[%clk 00:00:24]} {[%emt 00:00:03]}
Bc7 {[%emt 00:00:03]} 41. Bxc7 {[%clk 00:00:25]} {[%emt 00:00:03]} Qxc7+ {[%clk
00:00:17]} {[%emt 00:00:01]} 42. Rg3 {[%clk 00:00:29]} Qf7 {[%clk 00:00:20]}
{[%emt 00:00:03]} 43. a4 {[%clk 00:00:30]} {[%emt 00:00:04]} f5 {[%clk
00:00:24]} 44. Rf3 {[%clk 00:00:32]} {[%emt 00:00:04]} Rf6 {[%clk 00:00:27]} 45.
b5 {[%clk 00:00:35]} {[%emt 00:00:02]} g6 {[%clk 00:00:31]} 46. Re3 {[%clk
00:00:38]} {[%emt 00:00:02]} Re6 {[%clk 00:00:36]} {[%emt 00:00:01]} 47. Re5
{[%clk 00:00:41]} {[%emt 00:00:01]} Rxe5 {[%clk 00:00:36]} {[%emt 00:00:03]} 48.
dxe5 {[%clk 00:00:46]} {[%emt 00:00:02]} Qe6 {[%clk 00:00:39]} {[%emt
00:00:02]} 49. Qd4 {[%clk 00:00:47]} {[%emt 00:00:04]} b6 {[%clk 00:00:44]}
{[%emt 00:00:01]} 50. Qc3 {[%clk 00:00:45]} {[%emt 00:00:06]} g5 {[%clk
00:00:45]} {[%emt 00:00:04]} 51. g3 {[%clk 00:00:44]} {[%emt 00:00:05]} f4
{[%clk 00:00:28]} {[%emt 00:00:23]} 52. Qc7+ {[%clk 00:00:37]} {[%emt
00:00:11]} Kg6 {[%clk 00:00:29]} {[%emt 00:00:05]} 53. g4 {[%clk 00:00:37]}
{[%emt 00:00:04]} d4 {[%clk 00:00:19]} {[%emt 00:00:16]} 54. Qc2+ {[%clk
00:00:33]} {[%emt 00:00:08]} Kf7 {[%clk 00:00:11]} {[%emt 00:00:14]} 55. Qe4
{[%clk 00:00:36]} {[%emt 00:00:02]} Qd7 {[%clk 00:00:09]} {[%emt 00:00:07]} 56.
Qh7+ {[%clk 00:00:33]} {[%emt 00:00:07]} Ke6 {[%clk 00:00:13]} 57. Qf5+ {[%clk
00:00:37]} Ke7 {[%clk 00:00:18]} 58. Qf6+ {[%clk 00:00:39]} {[%emt 00:00:03]}
Ke8 {[%clk 00:00:22]} 59. e6 {[%clk 00:00:28]} {[%emt 00:00:17]} Qd6 {[%clk
00:00:18]} {[%emt 00:00:09]} 60. Qf7+ {[%clk 00:00:16]} {[%emt 00:00:18]} Kd8
{[%clk 00:00:22]} 61. Qf6+ {[%clk 00:00:10]} {[%emt 00:00:11]} Ke8 {[%clk
00:00:24]} {[%emt 00:00:03]} 62. Qg6+ {[%clk 00:00:14]} {[%emt 00:00:02]} Kd8
{[%clk 00:00:23]} {[%emt 00:00:05]} 63. Qf6+ {[%clk 00:00:15]} {[%emt
00:00:04]} Kc7 {[%clk 00:00:22]} {[%emt 00:00:06]} 64. Qf7+ {[%clk 00:00:13]}
{[%emt 00:00:06]} Kd8 {[%clk 00:00:26]} {[%emt 00:00:02]} 65. Qf6+ {[%clk
00:00:16]} 1/2-1/2

[Event "Dalheimers Hus Rapid Open"]
[Site "Dalheimers Hus, Slottsskogsgatan 12, Gothenburg, Sweden"]
[Date "2024.04.14"]
[Round "5.1"]
[White "Johansson, Linus"]
[Black "Mohammadi, Amir"]
[Result "1-0"]
[TimeControl "15 minutes + 5 seconds per move from move one."]
[WhiteTitle "IM"]
[WhiteFideId "1711113"]
[BlackFideId "1705890"]
[WhiteElo "2427"]
[BlackElo "2275"]

1. d4 {[%clk 00:15:08]} {[%emt 00:00:02]} f5 {[%clk 00:15:03]} {[%emt
00:00:05]} 2. Nf3 {[%clk 00:15:06]} {[%emt 00:00:09]} Nf6 {[%clk 00:15:07]}
{[%emt 00:00:01]} 3. g3 {[%clk 00:15:10]} e6 {[%clk 00:15:11]} {[%emt
00:00:01]} 4. Bg2 {[%clk 00:15:14]} d5 {[%clk 00:15:15]} {[%emt 00:00:01]} 5.
O-O {[%clk 00:15:17]} {[%emt 00:00:02]} Bd6 {[%clk 00:15:19]} {[%emt 00:00:01]}
6. b3 {[%clk 00:15:14]} {[%emt 00:00:08]} Qe7 {[%clk 00:15:21]} {[%emt
00:00:03]} 7. c4 {[%clk 00:15:14]} {[%emt 00:00:05]} c6 {[%clk 00:15:25]}
{[%emt 00:00:01]} 8. Bb2 {[%clk 00:15:17]} {[%emt 00:00:02]} O-O {[%clk
00:15:27]} {[%emt 00:00:02]} 9. Qc1 {[%clk 00:15:21]} Ne4 {[%clk 00:13:49]}
{[%emt 00:01:44]} 10. Ba3 {[%clk 00:15:25]} {[%emt 00:00:01]} Bxa3 {[%clk
00:13:52]} {[%emt 00:00:02]} 11. Qxa3 {[%clk 00:15:28]} {[%emt 00:00:02]} Qxa3
{[%clk 00:13:55]} {[%emt 00:00:02]} 12. Nxa3 {[%clk 00:15:32]} {[%emt
00:00:02]} Nd7 {[%clk 00:13:52]} {[%emt 00:00:09]} 13. Rfc1 {[%clk 00:15:35]}
{[%emt 00:00:02]} Kf7 {[%clk 00:13:17]} {[%emt 00:00:39]} 14. Nc2 {[%clk
00:15:38]} {[%emt 00:00:02]} Ke7 {[%clk 00:13:19]} {[%emt 00:00:03]} 15. Nce1
{[%clk 00:15:42]} {[%emt 00:00:01]} f4 {[%clk 00:10:41]} {[%emt 00:02:43]} 16.
Nd3 {[%clk 00:15:40]} {[%emt 00:00:07]} fxg3 {[%clk 00:10:42]} {[%emt
00:00:04]} 17. hxg3 {[%clk 00:15:43]} {[%emt 00:00:02]} g5 {[%clk 00:09:23]}
{[%emt 00:01:23]} 18. Rc2 {[%clk 00:14:55]} {[%emt 00:00:54]} g4 {[%clk
00:07:38]} {[%emt 00:01:50]} 19. Nd2 {[%clk 00:14:58]} {[%emt 00:00:02]} Nxd2
{[%clk 00:07:14]} {[%emt 00:00:29]} 20. Rxd2 {[%clk 00:15:02]} Kd6 {[%clk
00:07:18]} 21. e4 {[%clk 00:14:08]} {[%emt 00:00:59]} b6 {[%clk 00:06:52]}
{[%emt 00:00:32]} 22. cxd5 {[%clk 00:13:27]} {[%emt 00:00:45]} cxd5 {[%clk
00:06:55]} {[%emt 00:00:02]} 23. e5+ {[%clk 00:13:31]} {[%emt 00:00:02]} Ke7
{[%clk 00:06:13]} {[%emt 00:00:46]} 24. Rc1 {[%clk 00:13:07]} {[%emt 00:00:29]}
Ba6 {[%clk 00:05:05]} {[%emt 00:01:13]} 25. Nb4 {[%clk 00:10:40]} {[%emt
00:02:32]} Bb7 {[%clk 00:05:08]} {[%emt 00:00:01]} 26. Rc7 {[%clk 00:10:18]}
{[%emt 00:00:27]} Rab8 {[%clk 00:05:12]} {[%emt 00:00:02]} 27. Rdc2 {[%clk
00:10:09]} {[%emt 00:00:14]} Rfc8 {[%clk 00:05:15]} {[%emt 00:00:02]} 28. Rxc8
{[%clk 00:10:07]} {[%emt 00:00:07]} Rxc8 {[%clk 00:05:13]} {[%emt 00:00:07]} 29.
Rxc8 {[%clk 00:10:11]} {[%emt 00:00:01]} Bxc8 {[%clk 00:05:17]} {[%emt
00:00:02]} 30. Nc6+ {[%clk 00:10:15]} Kf7 {[%clk 00:04:54]} {[%emt 00:00:27]}
31. Nxa7 {[%clk 00:09:24]} {[%emt 00:00:56]} Ba6 {[%clk 00:04:58]} {[%emt
00:00:02]} 32. Bf1 {[%clk 00:08:31]} {[%emt 00:00:58]} Nb8 {[%clk 00:04:41]}
{[%emt 00:00:22]} 33. a3 {[%clk 00:08:19]} {[%emt 00:00:17]} Kg6 {[%clk
00:03:52]} {[%emt 00:00:53]} 34. Bxa6 {[%clk 00:06:02]} {[%emt 00:02:22]} Nxa6
{[%clk 00:03:56]} {[%emt 00:00:02]} 35. f3 {[%clk 00:06:06]} Kf5 {[%clk
00:02:23]} {[%emt 00:01:38]} 36. Kf2 {[%clk 00:06:10]} h5 {[%clk 00:02:18]}
{[%emt 00:00:10]} 37. Nc8 {[%clk 00:05:32]} {[%emt 00:00:43]} Nc7 {[%clk
00:01:56]} {[%emt 00:00:27]} 38. a4 {[%clk 00:05:25]} {[%emt 00:00:13]} Na8
{[%clk 00:01:23]} {[%emt 00:00:38]} 39. Nd6+ {[%clk 00:05:16]} {[%emt
00:00:14]} Kg5 {[%clk 00:01:21]} {[%emt 00:00:05]} 40. Nb5 {[%clk 00:04:59]}
{[%emt 00:00:22]} h4 {[%clk 00:01:21]} {[%emt 00:00:06]} 41. gxh4+ {[%clk
00:04:29]} {[%emt 00:00:36]} Kxh4 {[%clk 00:01:24]} {[%emt 00:00:01]} 42. fxg4
{[%clk 00:04:32]} {[%emt 00:00:02]} Kxg4 {[%clk 00:01:28]} {[%emt 00:00:01]} 43.
Ke3 {[%clk 00:04:36]} Kg3 {[%emt 00:00:01]} 44. b4 {[%emt 00:00:18]} Kg4 {[%clk
00:01:10]} {[%emt 00:00:04]} 45. a5 {[%clk 00:04:27]} {[%emt 00:00:15]} Kg3
{[%clk 00:01:13]} {[%emt 00:00:01]} 46. a6 {[%clk 00:03:42]} {[%emt 00:00:50]}
Kg4 {[%clk 00:01:16]} {[%emt 00:00:02]} 47. a7 {[%clk 00:03:45]} {[%emt
00:00:02]} Kg3 {[%clk 00:01:05]} {[%emt 00:00:15]} 48. Nd6 {[%clk 00:03:46]}
{[%emt 00:00:04]} Kg4 {[%clk 00:01:07]} {[%emt 00:00:03]} 49. Nf7 {[%clk
00:03:47]} {[%emt 00:00:05]} Kf5 {[%clk 00:01:01]} {[%emt 00:00:12]} 50. Nd8
{[%clk 00:03:49]} {[%emt 00:00:02]} Nc7 {[%clk 00:01:02]} {[%emt 00:00:04]} 51.
Kf3 {[%clk 00:03:09]} {[%emt 00:00:45]} Na8 {[%clk 00:01:01]} {[%emt 00:00:06]}
52. Nf7 {[%clk 00:03:03]} {[%emt 00:00:12]} Kg6 {[%clk 00:00:44]} {[%emt
00:00:22]} 53. Nd6 {[%clk 00:03:01]} {[%emt 00:00:07]} Kg5 {[%clk 00:00:47]}
{[%emt 00:00:02]} 54. Kg3 {[%clk 00:02:39]} {[%emt 00:00:27]} Nc7 {[%clk
00:00:47]} {[%emt 00:00:05]} 55. Ne8 {[%clk 00:02:43]} {[%emt 00:00:01]} Na8
{[%clk 00:00:38]} {[%emt 00:00:14]} 56. Ng7 {[%clk 00:02:46]} {[%emt 00:00:02]}
b5 {[%clk 00:00:31]} {[%emt 00:00:12]} 57. Kf3 {[%clk 00:02:45]} {[%emt
00:00:05]} Kg6 {[%clk 00:00:27]} {[%emt 00:00:10]} 58. Nxe6 {[%clk 00:02:48]}
{[%emt 00:00:01]} 1-0

[Event "Dalheimers Hus Rapid Open"]
[Site "Dalheimers Hus, Slottsskogsgatan 12, Gothenburg, Sweden"]
[Date "2024.04.14"]
[Round "5.2"]
[White "Sigurgeirson, Brjann"]
[Black "Hellers, Ferdinand"]
[Result "1/2-1/2"]
[TimeControl "15 minutes + 5 seconds per move from move one."]
[BlackTitle "GM"]
[WhiteFideId "1712497"]
[BlackFideId "1700022"]
[WhiteElo "2103"]
[BlackElo "2410"]

1. e4 {[%clk 00:14:55]} {[%emt 00:00:14]} g6 {[%clk 00:15:04]} {[%emt
00:00:06]} 2. d4 {[%clk 00:14:55]} {[%emt 00:00:05]} Bg7 {[%clk 00:15:07]}
{[%emt 00:00:01]} 3. Nc3 {[%clk 00:14:58]} {[%emt 00:00:04]} c6 {[%clk
00:15:06]} {[%emt 00:00:05]} 4. f4 {[%clk 00:14:40]} {[%emt 00:00:23]} d5
{[%clk 00:15:05]} {[%emt 00:00:05]} 5. e5 {[%clk 00:14:38]} {[%emt 00:00:08]}
Nh6 {[%clk 00:15:06]} {[%emt 00:00:03]} 6. Nf3 {[%clk 00:14:19]} {[%emt
00:00:25]} O-O {[%clk 00:14:33]} {[%emt 00:00:38]} 7. Bd3 {[%clk 00:12:48]}
{[%emt 00:01:36]} Bg4 {[%clk 00:12:38]} {[%emt 00:01:59]} 8. h3 {[%clk
00:12:15]} {[%emt 00:00:39]} Bxf3 {[%clk 00:12:27]} {[%emt 00:00:16]} 9. Qxf3
{[%clk 00:12:18]} {[%emt 00:00:02]} f6 {[%clk 00:12:26]} {[%emt 00:00:05]} 10.
Qe2 {[%clk 00:08:41]} {[%emt 00:03:43]} fxe5 {[%clk 00:11:35]} {[%emt
00:00:56]} 11. fxe5 {[%clk 00:08:34]} {[%emt 00:00:12]} Nf5 {[%clk 00:09:32]}
{[%emt 00:02:08]} 12. Bxf5 {[%clk 00:08:34]} {[%emt 00:00:05]} Rxf5 {[%clk
00:09:35]} {[%emt 00:00:02]} 13. g4 {[%clk 00:07:41]} {[%emt 00:00:58]} Rf8
{[%clk 00:09:17]} {[%emt 00:00:23]} 14. Be3 {[%clk 00:07:43]} {[%emt 00:00:04]}
Nd7 {[%clk 00:07:44]} {[%emt 00:01:37]} 15. O-O-O {[%clk 00:07:38]} {[%emt
00:00:10]} b5 {[%clk 00:07:17]} {[%emt 00:00:32]} 16. Rdf1 {[%clk 00:06:45]}
{[%emt 00:00:59]} Qa5 {[%clk 00:06:33]} {[%emt 00:00:48]} 17. Kb1 {[%clk
00:05:34]} {[%emt 00:01:16]} Nb6 {[%clk 00:06:00]} {[%emt 00:00:38]} 18. Bg5
{[%clk 00:05:30]} {[%emt 00:00:09]} e6 {[%clk 00:04:22]} {[%emt 00:01:43]} 19.
Be7 {[%clk 00:05:26]} {[%emt 00:00:09]} Rxf1+ {[%clk 00:02:57]} {[%emt
00:01:30]} 20. Rxf1 {[%clk 00:05:26]} {[%emt 00:00:05]} Re8 {[%clk 00:03:00]}
{[%emt 00:00:02]} 21. Bc5 {[%clk 00:05:12]} {[%emt 00:00:19]} Nc4 {[%clk
00:02:32]} {[%emt 00:00:34]} 22. Qf2 {[%clk 00:04:53]} {[%emt 00:00:24]} Qc7
{[%clk 00:02:32]} {[%emt 00:00:04]} 23. b3 {[%clk 00:04:51]} {[%emt 00:00:07]}
Na5 {[%clk 00:02:13]} {[%emt 00:00:23]} 24. Ne2 {[%clk 00:01:38]} {[%emt
00:03:20]} Nb7 {[%clk 00:01:49]} {[%emt 00:00:29]} 25. Bb4 {[%clk 00:01:42]} a5
{[%clk 00:01:33]} {[%emt 00:00:20]} 26. Bd2 {[%clk 00:01:45]} {[%emt 00:00:02]}
c5 {[%clk 00:01:12]} {[%emt 00:00:27]} 27. dxc5 {[%clk 00:01:36]} {[%emt
00:00:14]} Rf8 {[%clk 00:01:08]} {[%emt 00:00:09]} 28. Qg2 {[%clk 00:01:40]}
Nxc5 {[%clk 00:01:04]} {[%emt 00:00:08]} 29. Rxf8+ {[%clk 00:01:44]} {[%emt
00:00:01]} Kxf8 {[%clk 00:00:55]} {[%emt 00:00:14]} 30. Qf2+ {[%clk 00:01:47]}
{[%emt 00:00:02]} Kg8 {[%clk 00:00:48]} {[%emt 00:00:13]} 31. Bxa5 {[%clk
00:01:51]} {[%emt 00:00:01]} Qxe5 {[%clk 00:00:50]} {[%emt 00:00:03]} 32. Bc3
{[%clk 00:01:54]} {[%emt 00:00:02]} Qd6 {[%clk 00:00:43]} {[%emt 00:00:12]} 33.
Bxg7 {[%clk 00:01:46]} {[%emt 00:00:13]} Kxg7 {[%clk 00:00:47]} {[%emt
00:00:01]} 34. Nc3 {[%clk 00:01:14]} {[%emt 00:00:37]} b4 {[%clk 00:00:41]}
{[%emt 00:00:12]} 35. Qd4+ {[%clk 00:01:18]} Kh6 {[%clk 00:00:26]} {[%emt
00:00:20]} 36. Qxb4 {[%clk 00:01:22]} {[%emt 00:00:01]} e5 {[%clk 00:00:26]}
{[%emt 00:00:04]} 37. Na4 {[%clk 00:01:16]} {[%emt 00:00:11]} Ne4 {[%clk
00:00:29]} {[%emt 00:00:02]} 1/2-1/2